[Event "Late-Titled-Tuesday-Blitz-October-17-2023"]
[Site "Chess.com"]
[Date "2023.10.17"]
[Round "4"]
[White "Makswolf200817"]
[Black "Haykoooo0o"]
[Result "1-0"]
[WhiteElo "2679"]
[BlackElo "2455"]
[TimeControl "180+1"]
[EndTime "14:41:34 PDT"]
[Termination "Makswolf200817 won by resignation"]

1. e4 {[%clk 0:03:00.9]} 1... c6 {[%clk 0:02:03]} 2. d4 {[%clk 0:02:57.1]} 2...
d5 {[%clk 0:02:03.9]} 3. exd5 {[%clk 0:02:57.6]} 3... cxd5 {[%clk 0:02:04.7]} 4.
Bd3 {[%clk 0:02:58.1]} 4... Nf6 {[%clk 0:02:05.1]} 5. c3 {[%clk 0:02:58.7]} 5...
Bg4 {[%clk 0:02:05.7]} 6. Qb3 {[%clk 0:02:57.9]} 6... Qc7 {[%clk 0:02:06.2]} 7.
Ne2 {[%clk 0:02:48]} 7... Bxe2 {[%clk 0:02:06.3]} 8. Bxe2 {[%clk 0:02:47.9]}
8... e6 {[%clk 0:02:07]} 9. Na3 {[%clk 0:02:46.3]} 9... a6 {[%clk 0:02:06.8]}
10. Nc2 {[%clk 0:02:45.8]} 10... Bd6 {[%clk 0:02:06.8]} 11. h3 {[%clk
0:02:44.7]} 11... O-O {[%clk 0:02:05.7]} 12. O-O {[%clk 0:02:40.9]} 12... Nc6
{[%clk 0:02:05.2]} 13. Ne3 {[%clk 0:02:41]} 13... Rfc8 {[%clk 0:02:03.7]} 14. g3
{[%clk 0:02:39.4]} 14... Ne4 {[%clk 0:01:44.4]} 15. Ng2 {[%clk 0:02:37.2]} 15...
Rab8 {[%clk 0:01:36.6]} 16. a3 {[%clk 0:02:26.4]} 16... b5 {[%clk 0:01:35]} 17.
Qd1 {[%clk 0:02:23.9]} 17... a5 {[%clk 0:01:34.6]} 18. Bf4 {[%clk 0:02:23.3]}
18... b4 {[%clk 0:01:24.7]} 19. cxb4 {[%clk 0:02:18.1]} 19... axb4 {[%clk
0:01:25.4]} 20. a4 {[%clk 0:02:18.8]} 20... Bxf4 {[%clk 0:01:22.9]} 21. Nxf4
{[%clk 0:02:18.5]} 21... Qb6 {[%clk 0:01:18.6]} 22. Bd3 {[%clk 0:01:35.1]} 22...
Qxd4 {[%clk 0:01:10.4]} 23. Bxe4 {[%clk 0:01:00.4]} 23... dxe4 {[%clk
0:00:59.7]} 24. a5 {[%clk 0:00:57.8]} 24... Qxb2 {[%clk 0:00:52.8]} 25. a6
{[%clk 0:00:57.1]} 25... Ra8 {[%clk 0:00:52]} 26. Qa4 {[%clk 0:00:50]} 26... Ne5
{[%clk 0:00:47.3]} 27. Rab1 {[%clk 0:00:44.2]} 27... Qa3 {[%clk 0:00:43.1]} 28.
Rxb4 {[%clk 0:00:39]} 28... Rxa6 {[%clk 0:00:38.1]} 29. Qb5 {[%clk 0:00:34.2]}
29... Nf3+ {[%clk 0:00:31.9]} 30. Kg2 {[%clk 0:00:34]} 30... Raa8 {[%clk
0:00:31.6]} 31. Rxe4 {[%clk 0:00:30]} 31... Nd2 {[%clk 0:00:29.2]} 32. Re3
{[%clk 0:00:30.4]} 32... Qc5 {[%clk 0:00:18.9]} 33. Qxc5 {[%clk 0:00:29.4]}
33... Rxc5 {[%clk 0:00:19.3]} 34. Rd1 {[%clk 0:00:30]} 34... Nc4 {[%clk
0:00:15.8]} 35. Rc3 {[%clk 0:00:30.3]} 35... Rac8 {[%clk 0:00:15.6]} 36. Kh2
{[%clk 0:00:28]} 36... g5 {[%clk 0:00:14.2]} 37. Nd3 {[%clk 0:00:26.5]} 37...
R5c6 {[%clk 0:00:12.6]} 38. Nb4 {[%clk 0:00:25.2]} 38... Rb6 {[%clk 0:00:10.7]}
39. Nc2 {[%clk 0:00:19.7]} 39... Rbc6 {[%clk 0:00:09.6]} 40. Ne1 {[%clk
0:00:13.6]} 40... Ne5 {[%clk 0:00:08.9]} 41. Re3 {[%clk 0:00:13.8]} 41... Ng6
{[%clk 0:00:07.8]} 42. Nf3 {[%clk 0:00:14.5]} 42... h6 {[%clk 0:00:07.6]} 43.
Kg2 {[%clk 0:00:15]} 43... Kg7 {[%clk 0:00:08.1]} 44. Nh2 {[%clk 0:00:15.5]}
44... Rc3 {[%clk 0:00:08.2]} 45. Re4 {[%clk 0:00:14.2]} 45... Rc2 {[%clk
0:00:07]} 46. Rd7 {[%clk 0:00:13.8]} 46... R2c7 {[%clk 0:00:06]} 47. Rd6 {[%clk
0:00:13.1]} 47... Rc6 {[%clk 0:00:05.8]} 48. Rd7 {[%clk 0:00:13.7]} 48... R8c7
{[%clk 0:00:06.4]} 49. Rd8 {[%clk 0:00:14]} 49... Ne7 {[%clk 0:00:06.8]} 50. Re3
{[%clk 0:00:13.4]} 50... Nf5 {[%clk 0:00:07]} 51. Rf3 {[%clk 0:00:13.5]} 51...
Rd6 {[%clk 0:00:06.7]} 52. Rb8 {[%clk 0:00:12.2]} 52... Rcd7 {[%clk 0:00:07]}
53. Ng4 {[%clk 0:00:12]} 53... Nd4 {[%clk 0:00:07.2]} 54. Re3 {[%clk 0:00:11.1]}
54... Nc6 {[%clk 0:00:07.6]} 55. Rb2 {[%clk 0:00:10.3]} 55... f5 {[%clk
0:00:07.5]} 56. Nh2 {[%clk 0:00:09.7]} 56... Kf6 {[%clk 0:00:07.7]} 57. Nf3
{[%clk 0:00:09.4]} 57... Nd4 {[%clk 0:00:07.3]} 58. Ne5 {[%clk 0:00:09]} 58...
Rc7 {[%clk 0:00:07.9]} 59. Rd2 {[%clk 0:00:09]} 59... Rd5 {[%clk 0:00:07.7]} 60.
Nd3 {[%clk 0:00:08]} 60... Nc6 {[%clk 0:00:06.6]} 61. Rb2 {[%clk 0:00:07.9]}
61... Nd4 {[%clk 0:00:05.4]} 62. Rd2 {[%clk 0:00:06.1]} 62... Rcd7 {[%clk
0:00:05.7]} 63. Nb4 {[%clk 0:00:06.1]} 63... R5d6 {[%clk 0:00:05.8]} 64. Red3
{[%clk 0:00:04.8]} 64... Ke7 {[%clk 0:00:06.2]} 65. Rxd4 {[%clk 0:00:03.5]}
65... Rxd4 {[%clk 0:00:04.6]} 66. Rxd4 {[%clk 0:00:04.1]} 66... Rb7 {[%clk
0:00:04.9]} 67. Nc6+ {[%clk 0:00:04.4]} 67... Kf6 {[%clk 0:00:05.4]} 68. Rd6
{[%clk 0:00:04.5]} 68... Rb6 {[%clk 0:00:05.1]} 69. f4 {[%clk 0:00:04.7]} 69...
Rb2+ {[%clk 0:00:04.3]} 70. Kf3 {[%clk 0:00:05]} 70... Rb3+ {[%clk 0:00:05]} 71.
Kf2 {[%clk 0:00:05.4]} 71... Rb2+ {[%clk 0:00:05.5]} 72. Ke3 {[%clk 0:00:05.9]}
72... Rb3+ {[%clk 0:00:06]} 73. Rd3 {[%clk 0:00:06.2]} 73... Rb6 {[%clk
0:00:06.6]} 74. Ne5 {[%clk 0:00:06.4]} 74... gxf4+ {[%clk 0:00:06.9]} 75. gxf4
{[%clk 0:00:07.3]} 75... Rb4 {[%clk 0:00:07.1]} 76. Rd7 {[%clk 0:00:07.1]} 76...
Re4+ {[%clk 0:00:07.2]} 77. Kf2 {[%clk 0:00:07.5]} 77... Rxf4+ {[%clk
0:00:06.6]} 78. Nf3 {[%clk 0:00:07.4]} 78... Rb4 {[%clk 0:00:05.3]} 79. Rh7
{[%clk 0:00:06.1]} 79... Kg6 {[%clk 0:00:05.6]} 80. Re7 {[%clk 0:00:06.5]} 80...
Kf6 {[%clk 0:00:05.6]} 81. Rh7 {[%clk 0:00:07.2]} 81... Kg6 {[%clk 0:00:05.9]}
82. Ra7 {[%clk 0:00:07.8]} 82... Rb2+ {[%clk 0:00:05.7]} 83. Kg3 {[%clk
0:00:07.8]} 83... Rb3 {[%clk 0:00:06]} 84. Ra6 {[%clk 0:00:08]} 84... Kf6 {[%clk
0:00:05.8]} 85. h4 {[%clk 0:00:08.1]} 85... Rb4 {[%clk 0:00:04.6]} 86. Ra8
{[%clk 0:00:07.5]} 86... Rg4+ {[%clk 0:00:05.1]} 87. Kf2 {[%clk 0:00:08]} 87...
f4 {[%clk 0:00:03.4]} 88. Ra5 {[%clk 0:00:07.1]} 88... e5 {[%clk 0:00:02.8]} 89.
Rxe5 {[%clk 0:00:05.8]} 89... Rg3 {[%clk 0:00:03.5]} 90. Ra5 {[%clk 0:00:05.5]}
90... Rg4 {[%clk 0:00:03.5]} 91. Ra6+ {[%clk 0:00:05.5]} 91... Kf5 {[%clk
0:00:03.9]} 92. Rxh6 {[%clk 0:00:05.5]} 92... Rg3 {[%clk 0:00:03.6]} 93. Rh8
{[%clk 0:00:05.5]} 93... Kg4 {[%clk 0:00:03.7]} 94. Rg8+ {[%clk 0:00:05.6]}
94... Kh3 {[%clk 0:00:04.1]} 95. Ng5+ {[%clk 0:00:03.5]} 95... Kxh4 {[%clk
0:00:03.7]} 96. Nf3+ {[%clk 0:00:03.8]} 96... Kh5 {[%clk 0:00:01.6]} 97. Rf8
{[%clk 0:00:03]} 97... Kh6 {[%clk 0:00:01.2]} 98. Rxf4 {[%clk 0:00:03.1]} 98...
Rg6 {[%clk 0:00:01.9]} 99. Ne5 {[%clk 0:00:03.1]} 99... Kg7 {[%clk 0:00:02.3]}
100. Nxg6 {[%clk 0:00:02.7]} 100... Kxg6 {[%clk 0:00:03.2]} 101. Rc4 {[%clk
0:00:02.5]} 101... Kg5 {[%clk 0:00:04.1]} 102. Ke3 {[%clk 0:00:03.4]} 102... Kg6
{[%clk 0:00:05]} 103. Rd4 {[%clk 0:00:03.7]} 103... Kf6 {[%clk 0:00:05.9]} 104.
Ke4 {[%clk 0:00:04.3]} 104... Ke7 {[%clk 0:00:06.8]} 105. Rd5 {[%clk 0:00:05]}
1-0

[Event "Late-Titled-Tuesday-Blitz-October-17-2023"]
[Site "Chess.com"]
[Date "2023.10.17"]
[Round "5"]
[White "c_H_e_S_s_K_i_L_e_R"]
[Black "rikchessmx"]
[Result "0-1"]
[WhiteElo "2003"]
[BlackElo "2292"]
[TimeControl "180+1"]
[EndTime "14:50:23 PDT"]
[Termination "rikchessmx won by resignation"]

1. d4 {[%clk 0:03:00.9]} 1... d5 {[%clk 0:03:00.9]} 2. Nf3 {[%clk 0:03:01.7]}
2... c6 {[%clk 0:03:01.4]} 3. g3 {[%clk 0:03:02.5]} 3... Bg4 {[%clk 0:03:00.9]}
4. Bg2 {[%clk 0:03:03.4]} 4... Qc7 {[%clk 0:03:00.1]} 5. Bf4 {[%clk 0:03:02.1]}
5... Qb6 {[%clk 0:02:59.1]} 6. Qc1 {[%clk 0:02:58.6]} 6... Nd7 {[%clk
0:02:58.5]} 7. c3 {[%clk 0:02:56.7]} 7... h6 {[%clk 0:02:57.5]} 8. O-O {[%clk
0:02:55.9]} 8... g5 {[%clk 0:02:56.5]} 9. Bd2 {[%clk 0:02:55.8]} 9... Bg7 {[%clk
0:02:55.9]} 10. Re1 {[%clk 0:02:56]} 10... e6 {[%clk 0:02:52.6]} 11. e4 {[%clk
0:02:56.2]} 11... O-O-O {[%clk 0:02:49.3]} 12. e5 {[%clk 0:02:55.8]} 12... Ne7
{[%clk 0:02:45.8]} 13. c4 {[%clk 0:02:53.2]} 13... Kb8 {[%clk 0:02:44.3]} 14. c5
{[%clk 0:02:52.5]} 14... Qc7 {[%clk 0:02:41.8]} 15. Qc3 {[%clk 0:02:52.1]} 15...
Bf5 {[%clk 0:02:34.7]} 16. a4 {[%clk 0:02:51]} 16... f6 {[%clk 0:02:34]} 17. a5
{[%clk 0:02:47.2]} 17... fxe5 {[%clk 0:02:30.8]} 18. Nxe5 {[%clk 0:02:46.7]}
18... Nxe5 {[%clk 0:02:29.6]} 19. dxe5 {[%clk 0:02:46.5]} 19... Ng6 {[%clk
0:02:28.8]} 20. f4 {[%clk 0:02:44.1]} 20... gxf4 {[%clk 0:02:25]} 21. Bxf4
{[%clk 0:02:45]} 21... Nxf4 {[%clk 0:02:23.8]} 22. gxf4 {[%clk 0:02:45.9]} 22...
Rhg8 {[%clk 0:02:23.8]} 23. Kf2 {[%clk 0:02:41.5]} 23... d4 {[%clk 0:02:23.6]}
24. Qb3 {[%clk 0:02:39.7]} 24... Bf8 {[%clk 0:02:20.2]} 25. Qc4 {[%clk
0:02:37.2]} 25... Be7 {[%clk 0:02:14.9]} 26. Rf1 {[%clk 0:02:33.7]} 26... Bh4+
{[%clk 0:02:13.1]} 27. Kg1 {[%clk 0:02:34.3]} 27... Bh3 {[%clk 0:02:10.7]} 0-1

[Event "Late-Titled-Tuesday-Blitz-October-17-2023"]
[Site "Chess.com"]
[Date "2023.10.17"]
[Round "5"]
[White "vladislavkovalev"]
[Black "Willychess95"]
[Result "1-0"]
[WhiteElo "2868"]
[BlackElo "2660"]
[TimeControl "180+1"]
[EndTime "14:50:40 PDT"]
[Termination "vladislavkovalev won by resignation"]

1. e4 {[%clk 0:02:57.9]} 1... c5 {[%clk 0:02:57.1]} 2. Nf3 {[%clk 0:02:58]} 2...
d6 {[%clk 0:02:57.6]} 3. Bb5+ {[%clk 0:02:58]} 3... Bd7 {[%clk 0:02:57.7]} 4.
Bxd7+ {[%clk 0:02:58]} 4... Qxd7 {[%clk 0:02:58.6]} 5. c4 {[%clk 0:02:58.4]}
5... e5 {[%clk 0:02:58.2]} 6. Nc3 {[%clk 0:02:58.2]} 6... Be7 {[%clk 0:02:59.1]}
7. O-O {[%clk 0:02:56.4]} 7... Bd8 {[%clk 0:02:59.3]} 8. a3 {[%clk 0:02:54.6]}
8... a5 {[%clk 0:02:57.5]} 9. Rb1 {[%clk 0:02:54.3]} 9... Nc6 {[%clk 0:02:57.6]}
10. d3 {[%clk 0:02:49.3]} 10... Nge7 {[%clk 0:02:57.4]} 11. Ne1 {[%clk
0:02:42.6]} 11... O-O {[%clk 0:02:57]} 12. f4 {[%clk 0:02:42.9]} 12... f5 {[%clk
0:02:56.1]} 13. Nc2 {[%clk 0:02:26.3]} 13... exf4 {[%clk 0:02:53.6]} 14. Bxf4
{[%clk 0:02:26.1]} 14... Ng6 {[%clk 0:02:53.3]} 15. exf5 {[%clk 0:02:08.9]}
15... Rxf5 {[%clk 0:02:38.9]} 16. Bg3 {[%clk 0:01:54.4]} 16... Bf6 {[%clk
0:02:27]} 17. Nd5 {[%clk 0:01:40.1]} 17... Be5 {[%clk 0:02:16.3]} 18. Nb6 {[%clk
0:01:35.6]} 1-0

[Event "Late-Titled-Tuesday-Blitz-October-17-2023"]
[Site "Chess.com"]
[Date "2023.10.17"]
[Round "5"]
[White "Sacbutt"]
[Black "UK_23"]
[Result "0-1"]
[WhiteElo "2220"]
[BlackElo "2403"]
[TimeControl "180+1"]
[EndTime "14:50:47 PDT"]
[Termination "UK_23 won by resignation"]

1. e4 {[%clk 0:03:00.9]} 1... e5 {[%clk 0:02:59.4]} 2. Nf3 {[%clk 0:03:00.9]}
2... Nc6 {[%clk 0:02:59.9]} 3. Bc4 {[%clk 0:03:00.7]} 3... Nf6 {[%clk
0:02:59.8]} 4. d3 {[%clk 0:03:00.8]} 4... Be7 {[%clk 0:02:59.5]} 5. O-O {[%clk
0:03:00.3]} 5... O-O {[%clk 0:03:00.1]} 6. c3 {[%clk 0:03:00.4]} 6... d5 {[%clk
0:02:58.9]} 7. exd5 {[%clk 0:03:00.1]} 7... Nxd5 {[%clk 0:02:59.8]} 8. Re1
{[%clk 0:02:58]} 8... Bg4 {[%clk 0:02:59]} 9. Nbd2 {[%clk 0:02:52.7]} 9... Nb6
{[%clk 0:02:58.2]} 10. h3 {[%clk 0:02:46.4]} 10... Bh5 {[%clk 0:02:57.1]} 11. g4
{[%clk 0:02:44.1]} 11... Bg6 {[%clk 0:02:57.3]} 12. Nxe5 {[%clk 0:02:44.1]}
12... Nxe5 {[%clk 0:02:57.3]} 13. Rxe5 {[%clk 0:02:44.3]} 13... Bd6 {[%clk
0:02:49]} 14. Re1 {[%clk 0:02:42.4]} 14... Nxc4 {[%clk 0:02:30.8]} 15. dxc4
{[%clk 0:02:38.7]} 15... f5 {[%clk 0:02:27.4]} 16. Nf1 {[%clk 0:02:28.2]} 16...
fxg4 {[%clk 0:02:19.6]} 17. Qxg4 {[%clk 0:02:24.4]} 17... Bf5 {[%clk 0:01:57.9]}
18. Qg2 {[%clk 0:02:18.8]} 18... Qd7 {[%clk 0:01:55.1]} 19. Qd5+ {[%clk
0:01:53.2]} 19... Kh8 {[%clk 0:01:51.9]} 20. c5 {[%clk 0:01:53.2]} 20... Bh2+
{[%clk 0:01:49.3]} 0-1

[Event "Late-Titled-Tuesday-Blitz-October-17-2023"]
[Site "Chess.com"]
[Date "2023.10.17"]
[Round "5"]
[White "ural58"]
[Black "Kale36"]
[Result "0-1"]
[WhiteElo "2502"]
[BlackElo "2319"]
[TimeControl "180+1"]
[EndTime "14:51:04 PDT"]
[Termination "Kale36 won by resignation"]

1. e4 {[%clk 0:03:00]} 1... Nc6 {[%clk 0:02:26.3]} 2. d4 {[%clk 0:02:48.7]} 2...
d5 {[%clk 0:02:25.9]} 3. exd5 {[%clk 0:02:34.6]} 3... Qxd5 {[%clk 0:02:25.3]} 4.
Be3 {[%clk 0:02:29.2]} 4... e5 {[%clk 0:02:25.3]} 5. c4 {[%clk 0:02:29.1]} 5...
Qd6 {[%clk 0:02:25.6]} 6. d5 {[%clk 0:02:26.6]} 6... Nce7 {[%clk 0:02:24.3]} 7.
Nc3 {[%clk 0:02:24.9]} 7... Nf5 {[%clk 0:02:21.3]} 8. Nb5 {[%clk 0:02:12.2]}
8... Qd8 {[%clk 0:02:20.8]} 9. Bxa7 {[%clk 0:01:45.7]} 9... Bb4+ {[%clk
0:01:57.4]} 10. Ke2 {[%clk 0:01:45]} 10... Rxa7 {[%clk 0:01:51.5]} 11. Nxa7
{[%clk 0:01:41.5]} 11... Nd4+ {[%clk 0:01:51.6]} 0-1

[Event "Late-Titled-Tuesday-Blitz-October-17-2023"]
[Site "Chess.com"]
[Date "2023.10.17"]
[Round "5"]
[White "VdovinDmitry"]
[Black "dianamirza"]
[Result "1-0"]
[WhiteElo "2226"]
[BlackElo "1947"]
[TimeControl "180+1"]
[EndTime "14:51:26 PDT"]
[Termination "VdovinDmitry won by resignation"]

1. e4 {[%clk 0:02:56.2]} 1... e5 {[%clk 0:02:51.6]} 2. Nf3 {[%clk 0:02:55.3]}
2... d6 {[%clk 0:02:51.9]} 3. d4 {[%clk 0:02:54]} 3... exd4 {[%clk 0:02:47.6]}
4. Nxd4 {[%clk 0:02:51.4]} 4... Nf6 {[%clk 0:02:47.9]} 5. Nc3 {[%clk 0:02:49.6]}
5... Be7 {[%clk 0:02:48.5]} 6. Bd3 {[%clk 0:02:46.4]} 6... O-O {[%clk
0:02:48.7]} 7. h3 {[%clk 0:02:44.8]} 7... Nc6 {[%clk 0:02:49.3]} 8. Be3 {[%clk
0:02:42.3]} 8... Nxd4 {[%clk 0:02:43]} 9. Bxd4 {[%clk 0:02:42.1]} 9... Be6
{[%clk 0:02:41.5]} 10. O-O {[%clk 0:02:36.6]} 10... Qd7 {[%clk 0:02:41.2]} 11.
f4 {[%clk 0:02:30.4]} 11... a6 {[%clk 0:02:26.3]} 12. f5 {[%clk 0:02:29.7]}
12... c5 {[%clk 0:02:17.1]} 13. fxe6 {[%clk 0:02:27.1]} 13... fxe6 {[%clk
0:02:18]} 14. Bxf6 {[%clk 0:02:26.2]} 14... Bxf6 {[%clk 0:02:16.8]} 15. Qg4
{[%clk 0:02:21.6]} 15... Rae8 {[%clk 0:02:09.3]} 16. Rad1 {[%clk 0:02:20.1]}
16... b5 {[%clk 0:02:09.3]} 17. Ne2 {[%clk 0:02:15.7]} 17... Qa7 {[%clk
0:02:09.2]} 18. c4 {[%clk 0:02:10.4]} 18... Bxb2 {[%clk 0:02:06.5]} 19. Rxf8+
{[%clk 0:02:06]} 19... Kxf8 {[%clk 0:02:04.1]} 20. Nf4 {[%clk 0:01:58.7]} 20...
Bd4+ {[%clk 0:01:56.9]} 21. Kh1 {[%clk 0:01:56.7]} 21... Qe7 {[%clk 0:01:51.1]}
22. Rf1 {[%clk 0:01:49.7]} 22... Kg8 {[%clk 0:01:49.5]} 23. cxb5 {[%clk
0:01:49.3]} 23... axb5 {[%clk 0:01:46]} 24. Bxb5 {[%clk 0:01:50.2]} 24... Rf8
{[%clk 0:01:44.3]} 25. Qxe6+ {[%clk 0:01:45.7]} 25... Qxe6 {[%clk 0:01:40.7]}
26. Nxe6 {[%clk 0:01:46.6]} 26... Rxf1+ {[%clk 0:01:40.3]} 27. Bxf1 {[%clk
0:01:46.2]} 1-0

[Event "Late-Titled-Tuesday-Blitz-October-17-2023"]
[Site "Chess.com"]
[Date "2023.10.17"]
[Round "5"]
[White "rdarruda"]
[Black "HanSchut"]
[Result "1/2-1/2"]
[WhiteElo "2465"]
[BlackElo "2315"]
[TimeControl "180+1"]
[EndTime "14:51:30 PDT"]
[Termination "Game drawn by agreement"]

1. Nf3 {[%clk 0:02:17.6]} 1... Nf6 {[%clk 0:02:54.7]} 2. d4 {[%clk 0:02:17.6]}
2... g6 {[%clk 0:02:54.2]} 3. Nc3 {[%clk 0:02:17.5]} 3... d5 {[%clk 0:02:54.3]}
4. Bg5 {[%clk 0:02:16.4]} 4... Bg7 {[%clk 0:02:53.9]} 5. Bxf6 {[%clk 0:02:16.7]}
5... Bxf6 {[%clk 0:02:54.8]} 6. e4 {[%clk 0:02:17]} 6... dxe4 {[%clk 0:02:55.2]}
7. Nxe4 {[%clk 0:02:17.8]} 7... Bg7 {[%clk 0:02:55.8]} 8. Bc4 {[%clk 0:02:17.7]}
8... O-O {[%clk 0:02:54.2]} 9. O-O {[%clk 0:02:16.6]} 9... Nd7 {[%clk
0:02:53.3]} 10. Qe2 {[%clk 0:02:14.9]} 10... Nf6 {[%clk 0:02:52.5]} 11. Rfe1
{[%clk 0:02:07.1]} 11... c6 {[%clk 0:02:34.7]} 12. Rad1 {[%clk 0:02:05.9]} 12...
Bg4 {[%clk 0:02:28.8]} 13. Ng3 {[%clk 0:02:05.6]} 13... e6 {[%clk 0:02:22.8]}
14. h3 {[%clk 0:02:03.8]} 14... Bxf3 {[%clk 0:02:22.8]} 15. Qxf3 {[%clk
0:02:04.7]} 15... Qb6 {[%clk 0:02:18.4]} 16. Bb3 {[%clk 0:01:59.8]} 16... Rad8
{[%clk 0:02:07.9]} 17. c3 {[%clk 0:01:51.2]} 17... Rd7 {[%clk 0:02:03.2]} 18.
Ne4 {[%clk 0:01:49.2]} 18... Nxe4 {[%clk 0:01:56.9]} 19. Qxe4 {[%clk 0:01:50.1]}
19... Rfd8 {[%clk 0:01:55.8]} 20. Qe2 {[%clk 0:01:41.3]} 20... c5 {[%clk
0:01:51.5]} 21. dxc5 {[%clk 0:01:40.8]} 21... Qxc5 {[%clk 0:01:40.3]} 22. Rxd7
{[%clk 0:01:40.7]} 22... Rxd7 {[%clk 0:01:40.2]} 23. Rd1 {[%clk 0:01:41.3]}
23... Rxd1+ {[%clk 0:01:36.3]} 24. Qxd1 {[%clk 0:01:42.2]} 24... Qc7 {[%clk
0:01:35.2]} 25. h4 {[%clk 0:01:41]} 25... h5 {[%clk 0:01:32.6]} 1/2-1/2

[Event "Late-Titled-Tuesday-Blitz-October-17-2023"]
[Site "Chess.com"]
[Date "2023.10.17"]
[Round "5"]
[White "Aariow"]
[Black "LaPiToB"]
[Result "1-0"]
[WhiteElo "2463"]
[BlackElo "2302"]
[TimeControl "180+1"]
[EndTime "14:51:51 PDT"]
[Termination "Aariow won by resignation"]

1. d4 {[%clk 0:03:00.5]} 1... Nf6 {[%clk 0:02:56.7]} 2. c4 {[%clk 0:03:01]} 2...
e6 {[%clk 0:02:52.1]} 3. Nc3 {[%clk 0:03:01.5]} 3... Bb4 {[%clk 0:02:47.9]} 4.
Qc2 {[%clk 0:03:02.2]} 4... O-O {[%clk 0:02:47]} 5. e4 {[%clk 0:03:02]} 5... d5
{[%clk 0:02:46]} 6. e5 {[%clk 0:03:02.6]} 6... Ne4 {[%clk 0:02:46.2]} 7. Bd3
{[%clk 0:03:03.3]} 7... c5 {[%clk 0:02:45.8]} 8. Nf3 {[%clk 0:03:03.7]} 8...
cxd4 {[%clk 0:02:45.4]} 9. Nxd4 {[%clk 0:03:04.6]} 9... Nc6 {[%clk 0:02:38.8]}
10. Nxc6 {[%clk 0:03:00.9]} 10... bxc6 {[%clk 0:02:38.4]} 11. O-O {[%clk
0:03:01.5]} 11... Bxc3 {[%clk 0:02:24.9]} 12. bxc3 {[%clk 0:03:00.6]} 12... Ba6
{[%clk 0:02:20.2]} 13. Bxe4 {[%clk 0:02:23.3]} 13... dxe4 {[%clk 0:02:18.5]} 14.
Qxe4 {[%clk 0:02:24.2]} 14... Qa5 {[%clk 0:02:18.4]} 15. Be3 {[%clk 0:01:59.9]}
15... Qa4 {[%clk 0:02:11]} 16. Rfd1 {[%clk 0:01:42]} 16... Rfd8 {[%clk
0:02:07.4]} 17. Bd4 {[%clk 0:01:19.1]} 17... c5 {[%clk 0:01:49.7]} 18. f4 {[%clk
0:01:05.5]} 18... cxd4 {[%clk 0:01:48.4]} 19. Rxd4 {[%clk 0:01:06.4]} 19... Rxd4
{[%clk 0:01:43.5]} 20. Qxa8+ {[%clk 0:01:06.5]} 1-0

[Event "Late-Titled-Tuesday-Blitz-October-17-2023"]
[Site "Chess.com"]
[Date "2023.10.17"]
[Round "5"]
[White "Chessbard1972"]
[Black "CarlosjPineror"]
[Result "1-0"]
[WhiteElo "2342"]
[BlackElo "2479"]
[TimeControl "180+1"]
[EndTime "14:51:56 PDT"]
[Termination "Chessbard1972 won by resignation"]

1. d4 {[%clk 0:02:41.2]} 1... Nf6 {[%clk 0:02:53.4]} 2. c4 {[%clk 0:02:39.2]}
2... e6 {[%clk 0:02:52.3]} 3. Nc3 {[%clk 0:02:38.1]} 3... Bb4 {[%clk 0:02:51]}
4. Qc2 {[%clk 0:02:38.2]} 4... d5 {[%clk 0:02:48.6]} 5. a3 {[%clk 0:02:37.3]}
5... Bxc3+ {[%clk 0:02:46.9]} 6. Qxc3 {[%clk 0:02:37]} 6... O-O {[%clk
0:02:46.5]} 7. Bg5 {[%clk 0:02:34.8]} 7... h6 {[%clk 0:02:42.4]} 8. Bh4 {[%clk
0:02:32.3]} 8... g5 {[%clk 0:02:42.2]} 9. Bg3 {[%clk 0:02:31.9]} 9... Ne4 {[%clk
0:02:42.4]} 10. Qc2 {[%clk 0:02:31.2]} 10... f5 {[%clk 0:02:40.5]} 11. Be5
{[%clk 0:02:28.8]} 11... c6 {[%clk 0:02:33]} 12. f3 {[%clk 0:02:21.3]} 12... Nd6
{[%clk 0:02:30.8]} 13. e3 {[%clk 0:02:14]} 13... Nf7 {[%clk 0:02:28.8]} 14. Bg3
{[%clk 0:02:10.7]} 14... Qf6 {[%clk 0:02:22.9]} 15. h4 {[%clk 0:01:58]} 15...
Nd7 {[%clk 0:02:11]} 16. Bd3 {[%clk 0:01:54.9]} 16... Qg7 {[%clk 0:02:00.6]} 17.
hxg5 {[%clk 0:01:53.2]} 17... hxg5 {[%clk 0:01:57.9]} 18. Ne2 {[%clk 0:01:52.3]}
18... Nf6 {[%clk 0:01:52.7]} 19. O-O-O {[%clk 0:01:49.5]} 19... Bd7 {[%clk
0:01:42]} 20. Kb1 {[%clk 0:01:46]} 20... a6 {[%clk 0:01:38.2]} 21. Be5 {[%clk
0:01:40.8]} 21... Nxe5 {[%clk 0:01:32.4]} 22. dxe5 {[%clk 0:01:40.7]} 22... Ne8
{[%clk 0:01:29.6]} 23. f4 {[%clk 0:01:39]} 23... g4 {[%clk 0:01:26.3]} 24. Rh5
{[%clk 0:01:33.3]} 24... Kf7 {[%clk 0:01:24.6]} 25. Rdh1 {[%clk 0:01:31.9]}
25... Qg6 {[%clk 0:01:23.6]} 26. Rg5 {[%clk 0:01:28.5]} 1-0

[Event "Late-Titled-Tuesday-Blitz-October-17-2023"]
[Site "Chess.com"]
[Date "2023.10.17"]
[Round "5"]
[White "FuenfgegenWilly"]
[Black "HajiyevKanan"]
[Result "0-1"]
[WhiteElo "2377"]
[BlackElo "2542"]
[TimeControl "180+1"]
[EndTime "14:52:01 PDT"]
[Termination "HajiyevKanan won by resignation"]

1. e4 {[%clk 0:01:28]} 1... c6 {[%clk 0:03:00.9]} 2. Nc3 {[%clk 0:01:28.1]} 2...
d5 {[%clk 0:03:01.8]} 3. Qe2 {[%clk 0:01:28.6]} 3... a6 {[%clk 0:03:01.1]} 4. d3
{[%clk 0:01:27.8]} 4... Nf6 {[%clk 0:03:00]} 5. g3 {[%clk 0:01:27.9]} 5... Qa5
{[%clk 0:02:59]} 6. e5 {[%clk 0:01:27.7]} 6... d4 {[%clk 0:02:55.7]} 7. Bd2
{[%clk 0:01:28.6]} 7... dxc3 {[%clk 0:02:54.9]} 8. Bxc3 {[%clk 0:01:29.5]} 8...
Qd5 {[%clk 0:02:51.9]} 9. exf6 {[%clk 0:01:29.7]} 9... Qxh1 {[%clk 0:02:49.5]}
10. fxg7 {[%clk 0:01:26.6]} 10... Bxg7 {[%clk 0:02:35.8]} 11. Bxg7 {[%clk
0:01:27.5]} 11... Rg8 {[%clk 0:02:24.4]} 12. Bf6 {[%clk 0:01:27.9]} 12... Be6
{[%clk 0:02:22.6]} 13. Bh4 {[%clk 0:01:12.3]} 13... Qxg1 {[%clk 0:02:19.3]} 14.
O-O-O {[%clk 0:01:12.4]} 14... Qxh2 {[%clk 0:02:14.2]} 15. Qe5 {[%clk
0:01:07.4]} 15... Qxf2 {[%clk 0:02:01.9]} 16. Bh3 {[%clk 0:01:07.5]} 16... Nd7
{[%clk 0:01:51.1]} 17. Qe4 {[%clk 0:01:03.4]} 17... Nf6 {[%clk 0:01:41.6]} 18.
Bxf6 {[%clk 0:00:58.8]} 18... Qxf6 {[%clk 0:01:42.2]} 19. Rf1 {[%clk 0:00:59]}
19... Qh6+ {[%clk 0:01:38.4]} 20. Kb1 {[%clk 0:00:54.6]} 0-1